bitfinex-derivatives/quotes_SOLF0:USTF0_20250321
["timestamp","ask_amount","ask_price","bid_price","bid_amount"]
[1742519376315,38.48543646,128.78,128.75,19.10590131]
[1742519376715,30.71453646,128.78,128.75,11.33420131]
[1742519376913,7.7711,128.77,128.74,19.10670131]
[1742519377114,7.7711,128.77,128.75,0.05429426]
[1742519377512,42.10479154,128.78,128.75,0.05429426]
[1742519377819,7.7716,128.76,128.75,0.05429426]
[1742519384718,19.10580131,128.76,128.75,0.05429426]
[1742519384923,7.7739,128.73,128.71,267.81420131]
[1742519385122,7.7739,128.73,128.71,11.33420131]
[1742519385524,7.7739,128.73,128.71,19.10870131]
[1742519385917,7.83324236,128.73,128.71,11.39391986]
[1742519387225,0.05934236,128.73,128.71,19.16851986]
[1742519387819,7.83284236,128.73,128.71,19.16851986]
[1742519388127,7.83284236,128.73,128.71,11.39391986]
[1742519388725,0.05934236,128.73,128.71,19.16851986]
[1742519390823,0.05934236,128.73,128.72,7.774]
[1742519391029,0.05934236,128.73,128.72,11.33420131]
[1742519391226,0.05934236,128.73,128.71,11.39391986]
[1742519391928,7.83314236,128.73,128.71,11.39391986]
[1742519395726,7.774,128.72,128.71,11.39391986]
[1742519395931,7.774,128.72,128.71,0.05971855]
[1742519396322,0.05934236,128.73,128.71,7.83421855]
[1742519396518,0.05934236,128.73,128.71,19.16841986]
[1742519397623,0.05934236,128.73,128.72,19.10820131]
[1742519400437,7.83274236,128.73,128.72,11.33420131]
[1742519401437,7.83274236,128.73,128.71,0.05971855]
[1742519404035,7.774,128.72,128.71,0.05971855]
[1742519405339,27.49934236,128.73,128.71,0.05971855]
[1742519405739,0.05934236,128.73,128.71,7.83411855]
[1742519406538,7.83304236,128.73,128.71,7.83411855]
[1742519406938,0.05934236,128.73,128.71,0.05971855]
[1742519407332,7.774,128.72,128.71,0.05971855]
[1742519408242,7.7767,128.68,128.66,11.33420131]
[1742519409437,7.8270698,128.68,128.66,11.38728097]
[1742519409637,7.7771,128.67,128.66,11.38728097]
[1742519409836,0.0503698,128.68,128.66,11.38728097]
[1742519410048,0.0503698,128.68,128.67,11.33420131]
[1742519412931,0.0503698,128.68,128.66,11.38728097]
[1742519414145,0.0503698,128.68,128.66,19.16458097]
[1742519414342,0.0503698,128.68,128.66,11.38728097]
[1742519414639,7.8271698,128.68,128.66,11.38728097]
[1742519415644,7.8271698,128.68,128.66,19.16488097]
[1742519415846,0.0503698,128.68,128.66,0.05307966]
[1742519416441,7.7771,128.67,128.66,0.05307966]
[1742519417139,7.8270698,128.68,128.66,0.05307966]
[1742519418851,7.7771,128.67,128.66,0.05307966]
[1742519419251,0.0503698,128.68,128.66,0.05307966]
[1742519419440,7.8272698,128.68,128.66,0.05307966]
[1742519419639,0.0503698,128.68,128.66,0.05307966]
[1742519419846,0.0503698,128.68,128.67,19.11130131]
[1742519421647,0.0503698,128.68,128.67,11.33420131]
[1742519421849,0.0503698,128.68,128.66,19.16458097]
[1742519422247,7.8268698,128.68,128.66,11.38728097]
[1742519425758,7.7771,128.67,128.66,11.38728097]
[1742519426353,7.7771,128.67,128.66,0.05307966]
[1742519427856,7.7771,128.67,128.61,256.46]
[1742519427857,11.33420131,128.67,128.61,256.46]
[1742519428161,11.33420131,128.66,128.61,11.33420131]
[1742519428347,7.7796,128.63,128.61,11.33420131]
[1742519428655,27.46,128.65,128.63,7.7794]
[1742519428859,27.46,128.65,128.63,19.11360131]
[1742519429058,27.51672326,128.65,128.63,19.17314608]
[1742519430259,27.51672326,128.65,128.63,11.39374608]
[1742519430952,27.51672326,128.65,128.63,19.17324608]
[1742519431151,27.51672326,128.65,128.64,11.33420131]
[1742519431360,0.05672326,128.65,128.64,11.33420131]
[1742519431560,0.05672326,128.65,128.64,19.11310131]
[1742519431754,0.05672326,128.65,128.64,11.33420131]
[1742519432961,0.05672326,128.65,128.63,19.17284608]
[1742519433159,0.05672326,128.65,128.63,0.05954477]
[1742519433758,7.83532326,128.65,128.63,0.05954477]
[1742519433963,11.33420131,128.64,128.63,0.05954477]
[1742519434157,46.57310131,128.64,128.63,0.05954477]
[1742519434364,27.46,128.64,128.6,11.33420131]
[1742519434563,27.46,128.64,128.61,11.33420131]
[1742519434763,27.46,128.64,128.62,7.7797]
[1742519435566,27.51557374,128.64,128.62,7.82990753]
[1742519438670,35.29447374,128.64,128.62,7.82990753]
[1742519439565,27.51557374,128.64,128.62,7.82990753]
[1742519440174,27.51557374,128.64,128.63,19.11370131]
[1742519440567,0.05557374,128.64,128.63,19.11370131]
[1742519442071,0.05557374,128.64,128.63,19.11370131]
[1742519445176,0.05557374,128.64,128.62,19.16410884]
[1742519446075,0.05557374,128.64,128.62,7.82990753]
[1742519446382,0.05557374,128.64,128.63,7.7795]
[1742519448878,7.83447374,128.64,128.62,0.05020753]
[1742519449085,0.05557374,128.64,128.62,0.05020753]
[1742519449691,7.7795,128.63,128.62,0.05020753]
[1742519449886,0.05557374,128.64,128.62,0.05020753]
[1742519450379,7.7795,128.63,128.62,0.05020753]
[1742519451380,7.7803,128.62,128.59,11.33420131]
[1742519451789,7.7803,128.62,128.59,19.11580131]
[1742519452387,7.7809,128.61,128.59,19.11600131]
[1742519452578,7.7809,128.61,128.59,7.84033984]
[1742519452887,7.83763313,128.61,128.59,7.84033984]
[1742519454485,7.83763313,128.61,128.59,0.05853984]
[1742519457986,0.05673313,128.61,128.59,7.84033984]
[1742519459383,0.05673313,128.61,128.59,19.17454115]
[1742519460590,0.05673313,128.61,128.6,7.7813]
[1742519460791,0.05673313,128.61,128.6,19.11550131]
[1742519463586,0.05673313,128.61,128.6,46.57550131]
[1742519477602,3.313e-05,128.61,128.6,46.57550131]
[1742519477804,2.1259,128.66,128.6,38.79420131]
[1742519478001,2.1259,128.66,128.64,11.33420131]
[1742519478691,2.1259,128.66,128.65,7.7783]
[1742519478896,2.18551133,128.66,128.65,7.7783]
[1742519483208,0.05961133,128.66,128.65,19.11250131]
[1742519483906,1.133e-05,128.66,128.65,19.11250131]
[1742519484411,29.5847,128.7,128.69,7.7758]
[1742519484802,2.1247,128.7,128.69,7.7758]
[1742519487407,2.1247,128.7,128.69,19.11000131]
[1742519487707,29.58565714,128.71,128.69,19.11000131]
[1742519488507,2.12565714,128.71,128.69,19.11000131]
[1742519488810,2.12565714,128.71,128.7,7.7752]
[1742519489310,2.12565714,128.71,128.69,11.33420131]
[1742519489811,2.12565714,128.71,128.69,19.10970131]
[1742519492014,2.12565714,128.71,128.69,7.7755]
[1742519492212,2.12565714,128.71,128.68,11.38524221]
[1742519492213,9.90035714,128.71,128.68,19.16144221]
[1742519492405,9.90035714,128.71,128.68,7.8272409]
[1742519495416,7.7758,128.69,128.68,0.0510409]
[1742519495827,38.79420131,128.69,128.64,11.33420131]
[1742519496118,7.7773,128.67,128.64,7.7786]
[1742519496915,7.7773,128.67,128.64,19.11280131]
[1742519497120,7.83030899,128.67,128.65,7.7783]
[1742519497321,7.83030899,128.67,128.64,11.39367195]
[1742519497717,7.83030899,128.67,128.64,19.17227195]
[1742519498323,0.05300899,128.67,128.65,19.11220131]
[1742519498518,0.05300899,128.67,128.65,11.33420131]
[1742519498916,0.05300899,128.67,128.66,7.7777]
[1742519499926,0.05300899,128.67,128.66,19.11190131]
[1742519501824,0.05300899,128.67,128.66,11.33420131]
[1742519504328,0.05300899,128.67,128.66,19.11190131]
[1742519505329,0.05300899,128.67,128.66,11.33420131]
[1742519506833,0.05300899,128.67,128.66,19.11190131]
[1742519508232,0.05300899,128.67,128.66,11.33420131]
[1742519509233,0.05300899,128.67,128.66,19.11190131]
[1742519515137,0.05300899,128.67,128.66,11.33420131]
[1742519516039,0.05300899,128.67,128.66,19.11190131]
[1742519529747,27.46,128.71,128.66,11.33420131]
[1742519529943,27.46,128.71,128.68,11.33420131]
[1742519530835,7.7754,128.7,128.68,19.11040131]
[1742519531036,7.7754,128.7,128.68,11.39213348]
[1742519531344,27.51333843,128.71,128.68,11.39213348]
[1742519532146,35.28823843,128.71,128.69,7.7758]
[1742519534048,35.28823843,128.71,128.68,19.16823348]
[1742519534435,27.51333843,128.71,128.68,11.39213348]
[1742519534947,0.05333843,128.71,128.68,11.39213348]
[1742519535344,7.82823843,128.71,128.69,7.7758]
[1742519537347,7.82823843,128.71,128.68,19.16823348]
[1742519537848,7.82823843,128.71,128.69,7.7758]
[1742519539150,7.82823843,128.71,128.68,19.16823348]
[1742519541347,7.82823843,128.71,128.69,7.7757]
[1742519542153,7.82823843,128.71,128.68,19.16823348]
[1742519542453,7.82823843,128.71,128.68,11.39213348]
[1742519543351,7.82823843,128.71,128.68,19.16813348]
[1742519543953,7.82823843,128.71,128.69,7.7757]
[1742519544251,0.05333843,128.71,128.69,7.7757]
[1742519544644,0.05333843,128.71,128.7,19.10940131]
[1742519545052,0.05333843,128.71,128.7,11.33420131]
[1742519546353,7.82793843,128.71,128.7,11.33420131]
[1742519546555,0.05333843,128.71,128.68,11.39213348]
[1742519547453,7.7756,128.7,128.68,11.39213348]
[1742519549654,7.7756,128.7,128.68,19.16853348]
[1742519550155,7.7756,128.7,128.68,11.39213348]
[1742519550646,7.82833843,128.71,128.68,11.39213348]
[1742519550847,7.82833843,128.71,128.68,19.16843348]
[1742519551045,0.05333843,128.71,128.68,11.39213348]
[1742519551453,0.05333843,128.71,128.68,19.16813348]
[1742519552153,0.05333843,128.71,128.69,7.7757]
[1742519553360,0.05333843,128.71,128.7,7.7752]
[1742519553654,0.05333843,128.71,128.7,19.10940131]
[1742519557258,0.05333843,128.71,128.7,11.33420131]
[1742519559863,0.05333843,128.71,128.7,19.10940131]
[1742519588899,17.67380131,128.77,128.7,11.33420131]
[1742519589089,27.44,128.76,128.73,11.33420131]
[1742519589596,35.2121,128.76,128.73,19.10730131]
[1742519590081,35.26940283,128.76,128.74,7.7725]
[1742519590287,7.82940283,128.76,128.74,7.7725]
[1742519590493,7.82940283,128.76,128.74,19.10670131]
[1742519592689,0.05730283,128.76,128.74,19.10670131]
[1742519592893,0.05730283,128.76,128.75,11.33420131]
[1742519594008,0.05730283,128.76,128.75,19.10640131]
[1742519596894,0.05730283,128.76,128.75,11.33420131]
[1742519597304,7.82890283,128.76,128.75,11.33420131]
[1742519597603,7.82890283,128.76,128.74,11.33420131]
[1742519597799,7.82890283,128.76,128.73,35.26871411]
[1742519597800,0.05730283,128.76,128.73,19.16291542]
[1742519598201,7.7722,128.75,128.73,19.16291542]
[1742519598704,7.7722,128.75,128.73,0.05561411]
[1742519599610,7.7722,128.75,128.73,7.82891411]
[1742519599799,7.7722,128.75,128.73,0.05561411]
[1742519600819,7.82930283,128.76,128.73,11.38981542]
[1742519601307,7.82930283,128.76,128.74,7.7725]
[1742519602699,7.82930283,128.76,128.73,19.16291542]
[1742519602909,7.82930283,128.76,128.73,11.38981542]
[1742519603405,7.82930283,128.76,128.74,7.7728]
[1742519603607,7.82930283,128.76,128.73,11.38981542]
[1742519603808,7.7723,128.75,128.73,19.16301542]
[1742519604203,7.7723,128.75,128.73,11.38981542]
[1742519604810,7.7728,128.74,128.73,0.05561411]
[1742519605507,9.7667,128.75,128.73,0.05561411]
[1742519605911,1.9942,128.75,128.73,0.05561411]
[1742519606211,27.49730283,128.76,128.74,19.10670131]
[1742519606709,27.49730283,128.76,128.74,11.33420131]
[1742519606899,35.26940283,128.76,128.74,11.33420131]
[1742519610410,7.7722,128.75,128.74,11.33420131]
[1742519614409,35.26920283,128.76,128.74,11.33420131]
[1742519614619,27.49730283,128.76,128.74,11.33420131]
[1742519615517,7.7722,128.75,128.74,11.33420131]
[1742519616318,27.49730283,128.76,128.74,11.33420131]
[1742519616707,0.05730283,128.76,128.75,7.7722]
[1742519617417,0.05730283,128.76,128.75,19.10640131]
[1742519622423,0.05730283,128.76,128.74,19.10680131]
[1742519622621,0.05730283,128.76,128.74,11.33420131]
[1742519623614,0.05730283,128.76,128.75,7.7722]
[1742519625128,0.05730283,128.76,128.74,19.10680131]
[1742519626825,7.82900283,128.76,128.74,19.10680131]
[1742519627029,0.05730283,128.76,128.73,38.80981542]
[1742519627325,0.05730283,128.76,128.73,11.38981542]
[1742519627529,7.7728,128.75,128.73,11.38981542]
[1742519627718,0.05730283,128.76,128.73,11.38981542]
[1742519627921,7.7722,128.75,128.73,0.05561411]
[1742519628118,0.05730283,128.76,128.73,11.38981542]
[1742519628629,0.05730283,128.76,128.73,19.16301542]
[1742519628828,0.05730283,128.76,128.73,11.38981542]
[1742519629326,0.05730283,128.76,128.74,7.7728]
[1742519630626,0.05730283,128.76,128.75,19.10640131]
[1742519634824,0.05730283,128.76,128.73,11.38981542]
[1742519635029,0.05730283,128.76,128.73,0.05561411]
[1742519635528,7.82940283,128.76,128.73,0.05561411]
[1742519635829,0.05730283,128.76,128.73,0.05561411]
[1742519636337,7.7722,128.75,128.73,0.05561411]
[1742519637727,7.7722,128.75,128.73,7.82891411]
[1742519638235,7.7722,128.75,128.73,0.05561411]
[1742519638629,7.82930283,128.76,128.74,11.33420131]
[1742519639537,7.7722,128.75,128.74,11.33420131]
[1742519640239,7.82920283,128.76,128.74,11.33420131]
[1742519640538,7.82920283,128.76,128.74,19.10700131]
[1742519641238,0.05730283,128.76,128.74,19.10700131]
[1742519642834,0.05730283,128.76,128.75,7.7722]
[1742519643735,0.05730283,128.76,128.74,11.33420131]
[1742519643941,0.05730283,128.76,128.74,19.10670131]
[1742519644135,0.05730283,128.76,128.74,11.33420131]
[1742519645339,0.05730283,128.76,128.75,7.7722]
[1742519647944,0.05730283,128.76,128.74,46.52670131]
[1742519648243,7.82900283,128.76,128.74,46.52670131]
[1742519649944,0.05730283,128.76,128.74,46.52670131]
[1742519652148,0.05730283,128.76,128.75,7.7722]
[1742519652845,0.05730283,128.76,128.75,19.10640131]
[1742519654033,3.5333677,128.79,128.75,275.49420131]
[1742519654238,3.41737669,128.81,128.78,11.33420131]
[1742519654442,3.46832074,128.82,128.8,11.33420131]
[1742519654736,3.46832074,128.82,128.81,19.10280131]
[1742519654941,3.46832074,128.82,128.81,11.33420131]
[1742519655447,3.46832074,128.82,128.8,38.80672141]
[1742519656949,3.46832074,128.82,128.8,46.57542141]
[1742519657245,3.46832074,128.82,128.8,38.80672141]
[1742519657946,3.46832074,128.82,128.8,0.0525201]
[1742519658250,11.23662074,128.82,128.8,0.0525201]
[1742519659252,7.7686,128.81,128.8,0.0525201]
[1742519659641,3.46832074,128.82,128.8,0.0525201]
[1742519660457,7.7678,128.81,128.8,0.0525201]
[1742519664552,11.23592074,128.82,128.8,0.0525201]
[1742519665056,7.7678,128.81,128.8,0.0525201]
[1742519665253,3.46832074,128.82,128.8,0.0525201]
[1742519665858,11.23592074,128.82,128.8,0.0525201]
[1742519666856,7.7678,128.81,128.8,0.0525201]
[1742519667562,7.7693,128.79,128.77,11.33420131]
[1742519667747,7.7693,128.79,128.76,46.52480131]
[1742519668863,7.82174788,128.79,128.76,46.58391936]
[1742519669053,11.38664919,128.79,128.76,0.05911805]
[1742519669554,7.7702,128.77,128.76,0.05911805]
[1742519671683,7.7702,128.77,128.7,283.74]
[1742519671684,38.75420131,128.77,128.7,283.74]
[1742519671977,11.33420131,128.75,128.7,295.07420131]
[1742519672178,7.7733,128.72,128.7,295.07420131]
[1742519672882,7.82474241,128.72,128.7,295.12716227]
[1742519674087,7.7739,128.71,128.7,256.37296096]
[1742519675073,7.7739,128.71,128.7,0.05296096]
[1742519675379,35.1939,128.71,128.7,0.05296096]
[1742519678182,27.42,128.71,128.7,0.05296096]
[1742519678383,0.05144241,128.72,128.7,0.05296096]
[1742519680392,0.05144241,128.72,128.7,7.82716096]
[1742519682489,0.05144241,128.72,128.7,19.16136227]
[1742519682786,7.82474241,128.72,128.7,19.16136227]
[1742519683288,7.82474241,128.72,128.7,11.38716227]
[1742519684790,7.82474241,128.72,128.7,0.05296096]
[1742519685094,7.82474241,128.72,128.7,7.82736096]
[1742519688001,7.7739,128.71,128.7,0.05296096]
[1742519691502,7.82504241,128.72,128.7,0.05296096]
[1742519691998,0.05144241,128.72,128.7,11.38716227]
[1742519692203,0.05144241,128.72,128.71,11.33420131]
[1742519692607,0.05144241,128.72,128.71,19.10810131]
[1742519693995,13.47810131,128.79,128.75,7.7709]
[1742519694196,13.47810131,128.79,128.75,11.33420131]
[1742519694197,2.1439,128.79,128.75,11.33420131]
[1742519694400,2.1439,128.79,128.76,11.33420131]
[1742519694401,35.1894,128.79,128.76,11.33420131]
[1742519694600,7.7694,128.79,128.76,19.10470131]
[1742519695105,0.05308976,128.79,128.77,19.10390131]
[1742519695495,0.05308976,128.79,128.77,11.33420131]
[1742519695691,0.05308976,128.79,128.76,11.38427042]
[1742519695899,0.05308976,128.79,128.76,0.05006911]
[1742519696099,7.7702,128.77,128.76,0.05006911]
[1742519696804,7.7716,128.75,128.73,11.33420131]
[1742519698005,7.83090921,128.75,128.73,11.38813425]
[1742519699812,0.05930921,128.75,128.73,19.16073425]
[1742519700002,0.05930921,128.75,128.74,11.33420131]
[1742519700505,0.05930921,128.75,128.74,19.10620131]
[1742519700708,0.05930921,128.75,128.74,46.52620131]
[1742519700896,35.1893,128.79,128.76,7.7704]
[1742519701100,35.1893,128.79,128.76,19.10460131]
[1742519701300,27.42,128.79,128.76,19.10460131]
[1742519702105,0.04923782,128.79,128.76,19.16107985]
[1742519702408,7.81853782,128.79,128.76,19.16107985]
[1742519702607,7.81853782,128.79,128.77,7.7702]
[1742519702812,0.04923782,128.79,128.78,11.33420131]
[1742519703316,0.04923782,128.79,128.78,19.10380131]
[1742519707913,7.81823782,128.79,128.78,11.33420131]
[1742519708111,7.81823782,128.79,128.77,38.75420131]
[1742519708707,7.7696,128.78,128.77,38.75420131]
[1742519708913,7.7696,128.78,128.76,11.39067985]
[1742519709315,7.81843782,128.79,128.76,19.16107985]
[1742519710317,0.04923782,128.79,128.77,7.7702]
[1742519711908,0.04923782,128.79,128.77,19.10440131]
[1742519715243,0.04923782,128.79,128.78,19.10380131]
[1742519715417,0.04923782,128.79,128.78,46.50380131]
[1742519718931,0.04923782,128.79,128.78,27.4]
[1742519719111,0.04923782,128.79,128.77,11.33420131]
[1742519719320,7.81853782,128.79,128.77,11.33420131]
[1742519719821,7.81853782,128.79,128.76,46.56117985]
[1742519720226,7.7696,128.78,128.76,46.56117985]
[1742519720432,0.04923782,128.79,128.76,46.56117985]
[1742519720753,0.04923782,128.79,128.76,27.45647854]
[1742519720990,7.7699,128.78,128.76,27.45647854]
[1742519721433,7.7699,128.78,128.76,38.79067985]
[1742519721638,7.7699,128.78,128.76,11.39067985]
[1742519721933,0.04923782,128.79,128.76,11.39067985]
[1742519721934,7.7702,128.77,128.76,11.39067985]
[1742519722138,0.04923782,128.79,128.76,11.39067985]
[1742519722633,0.04923782,128.79,128.77,11.33420131]
[1742519723233,0.04923782,128.79,128.78,11.33420131]
[1742519724540,0.04923782,128.79,128.78,19.10380131]
[1742519725039,0.04923782,128.79,128.78,11.33420131]
[1742519725942,0.04923782,128.79,128.78,19.10380131]
[1742519726440,0.04923782,128.79,128.78,11.33420131]
[1742519727440,7.81823782,128.79,128.78,11.33420131]
[1742519727738,7.81823782,128.79,128.77,11.33420131]
[1742519728138,7.81823782,128.79,128.77,19.10440131]
[1742519728440,0.04923782,128.79,128.77,19.10440131]
[1742519730232,0.04923782,128.79,128.77,11.33420131]
[1742519731445,7.7696,128.78,128.77,11.33420131]
[1742519731742,0.04923782,128.79,128.77,11.33420131]
[1742519732438,0.04923782,128.79,128.76,11.39067985]
[1742519733645,7.7702,128.77,128.76,0.05647854]
[1742519736047,7.772,128.74,128.73,11.33420131]
[1742519736235,38.73420131,128.78,128.71,291.6536]
[1742519736236,11.33420131,128.77,128.72,11.33420131]
[1742519736644,7.7731,128.73,128.72,11.33420131]
[1742519736841,27.4,128.75,128.71,267.81420131]
[1742519737046,0.0526433,128.74,128.71,0.0512944]
[1742519737241,13.41954461,128.74,128.71,0.0512944]
[1742519737442,7.7733,128.72,128.71,0.0512944]
[1742519739742,7.7745,128.7,128.69,11.33420131]
[1742519739954,27.42,128.72,128.68,22.07538501]
[1742519740142,7.7751,128.69,128.68,22.07538501]
[1742519740337,7.7751,128.69,128.68,10.7411837]
[1742519740541,7.7751,128.69,128.67,11.33420131]
[1742519740745,7.7751,128.69,128.67,11.38919978]
[1742519740943,0.05965464,128.7,128.67,11.38919978]
[1742519743252,0.05965464,128.7,128.67,19.16519978]
[1742519745350,0.05965464,128.7,128.68,7.7755]
[1742519746756,0.05965464,128.7,128.68,19.10970131]
[1742519748142,0.05965464,128.7,128.69,19.10930131]
[1742519752655,0.05965464,128.7,128.68,11.33420131]
[1742519753257,7.83445464,128.7,128.67,19.16519978]
[1742519753562,7.83445464,128.7,128.67,11.38919978]
[1742519753757,0.05965464,128.7,128.67,11.38919978]
[1742519753953,7.7752,128.69,128.67,11.38919978]
[1742519754456,7.7757,128.68,128.67,0.05499847]
[1742519759567,19.10990131,128.68,128.67,0.05499847]
[1742519759970,7.7776,128.65,128.63,11.33420131]
[1742519760564,35.1972,128.66,128.63,19.11280131]
[1742519761177,35.24866896,128.66,128.63,19.16545707]
[1742519761471,7.7775,128.65,128.63,11.38685707]
[1742519762072,27.47146896,128.66,128.63,11.38685707]
[1742519762270,35.24866896,128.66,128.63,11.38685707]
[1742519763073,35.24866896,128.66,128.63,19.16555707]
[1742519764575,7.7775,128.65,128.63,19.16555707]
[1742519765074,27.47146896,128.66,128.63,19.16555707]
[1742519765075,27.47146896,128.66,128.64,7.778]
[1742519765270,27.47146896,128.66,128.64,19.11220131]
[1742519767573,35.24846896,128.66,128.64,19.11220131]
[1742519767889,35.24846896,128.66,128.64,11.33420131]
[1742519768079,7.7775,128.65,128.64,11.33420131]
[1742519768582,27.47146896,128.66,128.64,11.33420131]
[1742519768780,35.24876896,128.66,128.64,11.33420131]
[1742519769271,7.7775,128.65,128.64,11.33420131]
[1742519769681,7.7775,128.65,128.63,19.16525707]
[1742519770381,7.7775,128.65,128.63,11.38685707]
[1742519773382,27.47146896,128.66,128.63,11.38685707]
[1742519773584,7.7781,128.64,128.63,0.05265576]
[1742519773882,7.7781,128.64,128.62,11.33420131]
[1742519773883,11.33420131,128.65,128.61,256.5]
[1742519774184,7.7793,128.62,128.61,256.5]
[1742519774374,7.7793,128.62,128.6,11.33420131]
[1742519774777,7.779,128.63,128.6,19.11460131]
[1742519775087,0.05507252,128.62,128.61,11.33420131]
[1742519776687,7.83437252,128.62,128.6,11.38347748]
[1742519777081,7.7799,128.61,128.6,0.04927617]
[1742519777481,0.05507252,128.62,128.6,0.04927617]
[1742519778186,7.83467252,128.62,128.6,0.04927617]
[1742519778688,0.05507252,128.62,128.6,0.04927617]
[1742519779493,7.7799,128.61,128.6,0.04927617]
[1742519782484,19.11410131,128.61,128.6,0.04927617]
[1742519785197,11.33420131,128.61,128.56,275.69680131]
[1742519785392,27.44,128.6,128.56,267.91420131]
[1742519785986,27.44,128.6,128.56,275.69690131]
[1742519786290,7.83484183,128.59,128.56,275.69690131]
[1742519786889,7.7819,128.58,128.56,275.69690131]
[1742519787087,0.05344183,128.59,128.56,275.69690131]
[1742519787288,11.38764314,128.59,128.54,11.33420131]
[1742519787486,11.33420131,128.58,128.54,11.33420131]
[1742519787686,7.783,128.56,128.54,11.33420131]
[1742519787886,27.44,128.57,128.53,7.7845]
[1742519787887,27.44,128.57,128.53,19.11870131]
[1742519788088,7.7836,128.55,128.53,11.33420131]
[1742519788288,7.7836,128.55,128.52,19.11920131]
[1742519789197,0.05661115,128.56,128.52,19.11920131]
[1742519789495,0.05661115,128.56,128.53,19.11890131]
[1742519789692,0.05661115,128.56,128.54,11.33420131]
[1742519789996,0.05661115,128.56,128.55,19.11770131]
[1742519790991,0.05661115,128.56,128.55,11.33420131]
[1742519791295,0.05661115,128.56,128.54,19.11810131]
[1742519791800,0.05661115,128.56,128.55,7.7835]
[1742519794186,0.05661115,128.56,128.55,19.11770131]
[1742519794392,0.05661115,128.56,128.53,11.33420131]
[1742519794596,0.05661115,128.56,128.54,7.7838]
[1742519798304,0.05661115,128.56,128.55,7.7835]
[1742519799905,7.83981115,128.56,128.5,256.68]
[1742519800113,27.49661115,128.56,128.52,11.33420131]
[1742519800612,35.27991115,128.56,128.52,19.11910131]
[1742519801918,7.7835,128.55,128.52,19.11910131]
[1742519802211,38.83081246,128.56,128.51,46.55970131]
[1742519802820,7.7841,128.55,128.52,11.33420131]
[1742519803008,38.83081246,128.56,128.51,11.33420131]
[1742519803213,38.83081246,128.56,128.5,275.80050131]
[1742519803411,7.785,128.53,128.5,275.80050131]
[1742519803812,7.83724438,128.53,128.5,275.80050131]
[1742519805008,7.7855,128.52,128.5,268.01420131]
[1742519805203,27.49224438,128.53,128.5,256.68]
[1742519805412,27.49224438,128.53,128.47,7.7878]
[1742519805413,7.7867,128.5,128.47,7.7878]
[1742519805710,38.77420131,128.53,128.48,11.33420131]
[1742519805908,0.05896901,128.5,128.48,11.33420131]
[1742519806108,0.05896901,128.5,128.48,19.12190131]
[1742519806715,0.05896901,128.5,128.48,7.7877]
[1742519807017,0.05896901,128.5,128.48,19.12190131]
[1742519808321,0.05896901,128.5,128.49,19.12140131]
[1742519808521,0.05896901,128.5,128.49,46.58140131]
[1742519808916,27.44,128.53,128.52,7.7854]
[1742519809111,7.7844,128.54,128.51,11.33420131]
[1742519809511,7.7844,128.54,128.51,19.11980131]
[1742519810222,7.785,128.53,128.51,11.38499003]
[1742519810719,7.7854,128.52,128.51,0.05078872]
[1742519810921,27.51915158,128.54,128.51,0.05078872]
[1742519811418,7.7851,128.53,128.51,0.05078872]
[1742519812822,7.7851,128.53,128.51,7.83658872]
[1742519814624,7.7851,128.53,128.51,0.05078872]
[1742519814816,7.7854,128.52,128.51,0.05078872]
[1742519816216,7.7851,128.53,128.51,0.05078872]
[1742519816717,27.51915158,128.54,128.52,11.33420131]
[1742519817227,27.51915158,128.54,128.52,19.11920131]
[1742519817427,35.30335158,128.54,128.52,11.33420131]
[1742519817618,35.30335158,128.54,128.51,11.38499003]
[1742519817818,27.51915158,128.54,128.51,0.05078872]
[1742519818018,38.85335289,128.54,128.51,0.05078872]
[1742519819527,7.785,128.53,128.51,7.83678872]
[1742519819727,7.785,128.53,128.51,0.05078872]
[1742519819917,38.85335289,128.54,128.51,0.05078872]
[1742519820235,27.51915158,128.54,128.51,0.05078872]
[1742519820629,7.7847,128.53,128.51,0.05078872]
[1742519822936,7.7854,128.52,128.51,0.05078872]
[1742519824233,7.7851,128.53,128.51,0.05078872]
[1742519824836,7.7854,128.52,128.51,0.05078872]
[1742519826245,19.11960131,128.52,128.51,0.05078872]
[1742519837247,7.7881,128.48,128.46,11.33420131]
[1742519837442,38.79420131,128.49,128.44,278.87538501]
[1742519837643,38.79420131,128.49,128.44,286.66528501]
[1742519837842,7.7887,128.47,128.44,278.87538501]
[1742519838039,38.79420131,128.49,128.44,278.87538501]
[1742519838443,7.789,128.46,128.44,278.87538501]
[1742519838847,7.789,128.46,128.44,268.13420131]
[1742519839557,7.7887,128.47,128.44,268.13420131]
[1742519840551,7.84295225,128.48,128.44,268.13420131]
[1742519840854,7.84295225,128.48,128.44,275.92440131]
[1742519841251,7.84295225,128.48,128.44,268.13420131]
[1742519841451,7.7884,128.47,128.44,268.13420131]
[1742519841648,0.05495225,128.48,128.44,268.13420131]